fUSD/lending_fUSD_20260508
["ID","MTS","AMOUNT","RATE_DAILY","PERIOD"]
[421838036,1778199041000,-645.94484327,0.00013907,2]
[421838033,1778199041000,-500.0,0.00013907,2]
[421838034,1778199041000,-500.0,0.00013907,2]
[421838032,1778199041000,-500.0,0.00013907,2]
[421838029,1778199041000,-500.0,0.00013907,2]
[421838035,1778199041000,-500.0,0.00013907,2]
[421838030,1778199041000,-500.0,0.00013907,2]
[421838026,1778199041000,-500.0,0.00013907,2]
[421838028,1778199041000,-500.0,0.00013907,2]
[421838027,1778199041000,-500.0,0.00013907,2]
[421838031,1778199041000,-500.0,0.00013907,2]
[421838113,1778199042000,-166.66,0.0001411,2]
[421838112,1778199042000,-500.0,0.00014082,2]
[421838111,1778199042000,-166.67,0.00014063,2]
[421838110,1778199042000,-365.49380643,0.00014033,2]
[421838102,1778199042000,-150.0,0.00013987,2]
[421838104,1778199042000,-8956.08444381,0.00014,2]
[421838103,1778199042000,-5673.97539613,0.0001399,2]
[421838105,1778199042000,-1500.0,0.00014,2]
[421838109,1778199042000,-345.90256547,0.00014019,2]
[421838099,1778199042000,-500.0,0.00013973,2]
[421838108,1778199042000,-2080.17592889,0.00014014,2]
[421838101,1778199042000,-1011.34,0.0001398,2]
[421838114,1778199042000,-262.30635,0.00014116,2]
[421838121,1778199042000,-557.886,0.00014178,2]
[421838122,1778199042000,-550.12,0.00014207,2]
[421838120,1778199042000,-500.0,0.00014178,2]
[421838117,1778199042000,-365.49380643,0.00014142,2]
[421838116,1778199042000,-345.90256547,0.00014123,2]
[421838107,1778199042000,-171.29938492,0.00014014,2]
[421838118,1778199042000,-500.0,0.00014178,2]
[421838119,1778199042000,-500.0,0.00014178,2]
[421838124,1778199042000,-166.66,0.00014247,2]
[421838123,1778199042000,-345.90256547,0.00014227,2]
[421838125,1778199042000,-365.49380643,0.0001425,2]
[421838128,1778199042000,-152.0,0.00014282,7]
[421838129,1778199042000,-10000.0,0.00014304,2]
[421838130,1778199042000,-345.90256547,0.00014331,2]
[421838115,1778199042000,-946.14,0.00014123,2]
[421838106,1778199042000,-250.0,0.00014,2]
[421838069,1778199042000,-500.0,0.00013907,2]
[421838098,1778199042000,-500.0,0.00013973,2]
[421838127,1778199042000,-152.0,0.00014282,7]
[421838070,1778199042000,-500.0,0.00013907,2]
[421838071,1778199042000,-500.0,0.00013907,2]
[421838072,1778199042000,-500.0,0.00013907,2]
[421838076,1778199042000,-500.0,0.00013907,2]
[421838079,1778199042000,-500.0,0.00013907,2]
[421838077,1778199042000,-500.0,0.00013907,2]
[421838080,1778199042000,-500.0,0.00013907,2]
[421838074,1778199042000,-500.0,0.00013907,2]
[421838078,1778199042000,-500.0,0.00013907,2]
[421838073,1778199042000,-500.0,0.00013907,2]
[421838075,1778199042000,-500.0,0.00013907,2]
[421838081,1778199042000,-500.0,0.00013907,2]
[421838082,1778199042000,-500.0,0.00013907,2]
[421838083,1778199042000,-500.0,0.00013907,2]
[421838084,1778199042000,-500.0,0.00013907,2]
[421838085,1778199042000,-500.0,0.00013907,2]
[421838086,1778199042000,-500.0,0.00013907,2]
[421838088,1778199042000,-500.0,0.00013907,2]
[421838089,1778199042000,-500.0,0.00013907,2]
[421838091,1778199042000,-500.0,0.00013907,2]
[421838090,1778199042000,-500.0,0.00013907,2]
[421838087,1778199042000,-500.0,0.00013907,2]
[421838094,1778199042000,-345.90256547,0.00013916,2]
[421838093,1778199042000,-1224.0,0.00013907,5]
[421838092,1778199042000,-500.0,0.00013907,2]
[421838095,1778199042000,-365.49380643,0.00013925,2]
[421838096,1778199042000,-500.0,0.00013973,2]
[421838097,1778199042000,-500.0,0.00013973,2]
[421838100,1778199042000,-166.66,0.00013973,2]
[421838126,1778199042000,-433.0,0.00014255,2]
[421838147,1778199042000,-500.0,0.00014404,2]
[421838134,1778199042000,-166.66,0.00014384,2]
[421838173,1778199042000,-167.58814304,0.00014404,2]
[421838169,1778199042000,-500.0,0.00014404,2]
[421838168,1778199042000,-500.0,0.00014404,2]
[421838172,1778199042000,-500.0,0.00014404,2]
[421838167,1778199042000,-623.79637527,0.00014404,2]
[421838170,1778199042000,-500.0,0.00014404,2]
[421838174,1778199042000,-345.90256547,0.00014434,2]
[421838171,1778199042000,-500.0,0.00014404,2]
[421838176,1778199042000,-946.14,0.00014459,2]
[421838175,1778199042000,-500.0,0.00014457,2]
[421838178,1778199042000,-510.66718389,0.00014473,2]
[421838177,1778199042000,-365.49380643,0.00014467,2]
[421838179,1778199042000,-500.0,0.00014473,2]
[421838164,1778199042000,-500.0,0.00014404,2]
[421838182,1778199042000,-150.0,0.00014487,2]
[421838184,1778199042000,-175.68,0.00014497,2]
[421838180,1778199042000,-207.75,0.00014476,2]
[421838186,1778199042000,-3814.75,0.00014497,2]
[421838185,1778199042000,-615.37,0.00014497,2]
[421838187,1778199042000,-239.5250961,0.000145,2]
[421838188,1778199042000,-2351.0,0.00014519,2]
[421838190,1778199042000,-1000.0,0.00014521,2]
[421838193,1778199042000,-2157.14243826,0.00014562,2]
[421838191,1778199042000,-1000.0,0.00014521,2]
[421838194,1778199042000,-365.49380643,0.00014576,2]
[421838192,1778199042000,-345.90256547,0.00014538,2]
[421838189,1778199042000,-1000.0,0.00014521,2]
[421838131,1778199042000,-200.31015238,0.00014335,2]
[421838181,1778199042000,-5016.16587604,0.00014485,2]
[421838165,1778199042000,-500.0,0.00014404,2]
[421838183,1778199042000,-1625.89,0.00014497,2]
[421838163,1778199042000,-500.0,0.00014404,2]
[421838166,1778199042000,-500.0,0.00014404,2]
[421838132,1778199042000,-433.09700552,0.00014356,2]
[421838135,1778199042000,-1004.07362256,0.00014386,2]
[421838136,1778199042000,-10440.09389244,0.0001439,2]
[421838138,1778199042000,-500.0,0.00014404,2]
[421838144,1778199042000,-576.46146968,0.00014404,2]
[421838146,1778199042000,-500.0,0.00014404,2]
[421838148,1778199042000,-500.0,0.00014404,2]
[421838145,1778199042000,-500.0,0.00014404,2]
[421838139,1778199042000,-500.0,0.00014404,2]
[421838142,1778199042000,-500.0,0.00014404,2]
[421838143,1778199042000,-500.0,0.00014404,2]
[421838137,1778199042000,-1078.66240771,0.00014403,5]
[421838141,1778199042000,-370.3553347,0.00014404,2]
[421838140,1778199042000,-500.0,0.00014404,2]
[421838133,1778199042000,-365.49380643,0.00014359,2]
[421838150,1778199042000,-500.0,0.00014404,2]
[421838158,1778199042000,-522.28416822,0.00014404,2]
[421838157,1778199042000,-415.11090932,0.00014404,2]
[421838160,1778199042000,-500.0,0.00014404,2]
[421838162,1778199042000,-500.0,0.00014404,2]
[421838156,1778199042000,-548.3716092,0.00014404,2]
[421838159,1778199042000,-500.0,0.00014404,2]
[421838153,1778199042000,-500.0,0.00014404,2]
[421838154,1778199042000,-500.0,0.00014404,2]
[421838151,1778199042000,-500.0,0.00014404,2]
[421838152,1778199042000,-500.0,0.00014404,2]
[421838149,1778199042000,-500.0,0.00014404,2]
[421838155,1778199042000,-500.0,0.00014404,2]
[421838161,1778199042000,-500.0,0.00014404,2]
[421838243,1778199043000,-479.218682,0.00014742,2]
[421838240,1778199043000,-464.191244,0.00014742,2]
[421838241,1778199043000,-479.218682,0.00014742,2]
[421838238,1778199043000,-159.738525,0.00014742,2]
[421838233,1778199043000,-196.008536,0.00014742,2]
[421838235,1778199043000,-151.0,0.00014742,2]
[421838237,1778199043000,-159.738525,0.00014742,2]
[421838239,1778199043000,-159.738525,0.00014742,2]
[421838234,1778199043000,-151.0,0.00014742,2]
[421838242,1778199043000,-464.191244,0.00014742,2]
[421838230,1778199043000,-151.0,0.00014742,2]
[421838245,1778199043000,-479.218682,0.00014742,2]
[421838252,1778199043000,-500.0,0.00014774,2]
[421838248,1778199043000,-151.0,0.00014742,2]
[421838247,1778199043000,-479.218682,0.00014742,2]
[421838244,1778199043000,-464.191244,0.00014742,2]
[421838249,1778199043000,-151.0,0.00014742,2]
[421838251,1778199043000,-347.0,0.00014743,2]
[421838261,1778199043000,-500.0,0.00014784,2]
[421838250,1778199043000,-558.0,0.00014743,2]
[421838255,1778199043000,-500.0,0.00014784,2]
[421838256,1778199043000,-500.0,0.00014784,2]
[421838259,1778199043000,-500.0,0.00014784,2]
[421838258,1778199043000,-500.0,0.00014784,2]
[421838257,1778199043000,-500.0,0.00014784,2]
[421838232,1778199043000,-151.0,0.00014742,2]
[421838246,1778199043000,-464.191244,0.00014742,2]
[421838229,1778199043000,-151.0,0.00014742,2]
[421838212,1778199043000,-500.0,0.00014741,2]
[421838228,1778199043000,-151.0,0.00014742,2]
[421838195,1778199043000,-33139.5584,0.00014584,2]
[421838196,1778199043000,-14074.96392825,0.0001464,2]
[421838197,1778199043000,-345.90256547,0.00014642,2]
[421838199,1778199043000,-271.73678295,0.00014642,2]
[421838198,1778199043000,-1149.295504,0.00014642,2]
[421838200,1778199043000,-263.50783151,0.00014671,2]
[421838202,1778199043000,-500.0,0.00014684,2]
[421838209,1778199043000,-229.47870549,0.00014741,2]
[421838210,1778199043000,-500.0,0.00014741,2]
[421838201,1778199043000,-1207.76532497,0.00014671,2]
[421838204,1778199043000,-500.0,0.00014684,2]
[421838205,1778199043000,-500.0,0.00014684,2]
[421838208,1778199043000,-400.0,0.000147,5]
[421838203,1778199043000,-500.0,0.00014684,2]
[421838206,1778199043000,-365.49380643,0.00014684,2]
[421838207,1778199043000,-2000.0,0.00014687,2]
[421838265,1778199043000,-1000.0,0.00014784,2]
[421838214,1778199043000,-500.0,0.00014741,2]
[421838225,1778199043000,-151.0,0.00014742,2]
[421838226,1778199043000,-151.0,0.00014742,2]
[421838216,1778199043000,-500.0,0.00014741,2]
[421838219,1778199043000,-500.0,0.00014741,2]
[421838221,1778199043000,-3544.1543117,0.00014742,2]
[421838223,1778199043000,-151.0,0.00014742,2]
[421838222,1778199043000,-568568.7949461,0.00014742,2]
[421838224,1778199043000,-277.955564,0.00014742,2]
[421838218,1778199043000,-500.0,0.00014741,2]
[421838220,1778199043000,-250.07277871,0.00014741,2]
[421838227,1778199043000,-151.0,0.00014742,2]
[421838231,1778199043000,-151.0,0.00014742,2]
[421838266,1778199043000,-506.6446677,0.00014784,2]
[421838236,1778199043000,-159.738525,0.00014742,2]
[421838260,1778199043000,-500.0,0.00014784,2]
[421838308,1778199043000,-500.0,0.00014784,2]
[421838307,1778199043000,-500.0,0.00014784,2]
[421838311,1778199043000,-500.0,0.00014784,2]
[421838309,1778199043000,-500.0,0.00014784,2]
[421838312,1778199043000,-451.47310968,0.00014784,2]
[421838310,1778199043000,-500.0,0.00014784,2]
[421838313,1778199043000,-500.0,0.00014784,2]
[421838314,1778199043000,-500.0,0.00014784,2]
[421838323,1778199043000,-377.99793923,0.00014784,2]
[421838316,1778199043000,-500.0,0.00014784,2]
[421838324,1778199043000,-2000.0,0.00014785,2]
[421838322,1778199043000,-500.0,0.00014784,2]
[421838325,1778199043000,-200.0,0.00014785,2]
[421838305,1778199043000,-500.0,0.00014784,2]
[421838315,1778199043000,-500.0,0.00014784,2]
[421838318,1778199043000,-500.0,0.00014784,2]
[421838317,1778199043000,-500.0,0.00014784,2]
[421838320,1778199043000,-500.0,0.00014784,2]
[421838321,1778199043000,-500.0,0.00014784,2]
[421838326,1778199043000,-200.0,0.00014785,2]
[421838328,1778199043000,-200.0,0.00014785,2]
[421838331,1778199043000,-400.0,0.000148,5]
[421838329,1778199043000,-200.0,0.00014785,2]
[421838327,1778199043000,-151.0,0.00014785,2]
[421838332,1778199043000,-500.0,0.00014832,2]
[421838330,1778199043000,-946.14,0.00014795,2]
[421838333,1778199043000,-500.0,0.00014832,2]
[421838264,1778199043000,-1000.0,0.00014784,2]
[421838319,1778199043000,-500.0,0.00014784,2]
[421838303,1778199043000,-500.0,0.00014784,2]
[421838254,1778199043000,-500.0,0.00014774,2]
[421838304,1778199043000,-500.0,0.00014784,2]
[421838306,1778199043000,-500.0,0.00014784,2]
[421838262,1778199043000,-532.83050073,0.00014784,2]
[421838268,1778199043000,-500.0,0.00014784,2]
[421838267,1778199043000,-500.0,0.00014784,2]
[421838270,1778199043000,-500.0,0.00014784,2]
[421838271,1778199043000,-500.0,0.00014784,2]
[421838280,1778199043000,-500.0,0.00014784,2]
[421838269,1778199043000,-425.97163219,0.00014784,2]
[421838273,1778199043000,-500.0,0.00014784,2]
[421838276,1778199043000,-500.0,0.00014784,2]
[421838275,1778199043000,-500.0,0.00014784,2]
[421838279,1778199043000,-500.0,0.00014784,2]
[421838277,1778199043000,-500.0,0.00014784,2]
[421838278,1778199043000,-500.0,0.00014784,2]
[421838263,1778199043000,-306.64215495,0.00014784,2]
[421838283,1778199043000,-500.0,0.00014784,2]
[421838302,1778199043000,-500.0,0.00014784,2]
[421838301,1778199043000,-500.0,0.00014784,2]
[421838300,1778199043000,-500.0,0.00014784,2]
[421838294,1778199043000,-500.0,0.00014784,2]
[421838282,1778199043000,-500.0,0.00014784,2]
[421838298,1778199043000,-500.0,0.00014784,2]
[421838292,1778199043000,-500.0,0.00014784,2]
[421838299,1778199043000,-500.0,0.00014784,2]
[421838296,1778199043000,-500.0,0.00014784,2]
[421838290,1778199043000,-500.0,0.00014784,2]
[421838295,1778199043000,-500.0,0.00014784,2]
[421838285,1778199043000,-500.0,0.00014784,2]
[421838287,1778199043000,-500.0,0.00014784,2]
[421838297,1778199043000,-500.0,0.00014784,2]
[421838347,1778199044000,-151.0,0.00014833,2]
[421838348,1778199044000,-151.0,0.00014833,2]
[421838349,1778199044000,-151.0,0.00014833,2]
[421838352,1778199044000,-159.738525,0.00014833,2]
[421838357,1778199044000,-464.191244,0.00014833,2]
[421838356,1778199044000,-479.218682,0.00014833,2]
[421838359,1778199044000,-464.191244,0.00014833,2]
[421838355,1778199044000,-464.191244,0.00014833,2]
[421838350,1778199044000,-151.0,0.00014833,2]
[421838354,1778199044000,-159.738525,0.00014833,2]
[421838353,1778199044000,-159.738525,0.00014833,2]
[421838343,1778199044000,-152.25401,0.00014833,2]
[421838341,1778199044000,-151.0,0.00014833,2]
[421838351,1778199044000,-159.738525,0.00014833,2]
[421838344,1778199044000,-151.0,0.00014833,2]
[421838342,1778199044000,-151.0,0.00014833,2]
[421838345,1778199044000,-151.0,0.00014833,2]
[421838340,1778199044000,-151.0,0.00014833,2]
[421838339,1778199044000,-151.0,0.00014833,2]
[421838338,1778199044000,-18196.8803788,0.00014833,2]
[421838337,1778199044000,-206.14996025,0.00014832,2]
[421838334,1778199044000,-500.0,0.00014832,2]
[421838335,1778199044000,-500.0,0.00014832,2]
[421838336,1778199044000,-500.0,0.00014832,2]
[421838360,1778199044000,-479.218682,0.00014833,2]
[421838346,1778199044000,-151.0,0.00014833,2]
[421838361,1778199044000,-464.191244,0.00014833,2]
[421838370,1778199044000,-1338.54533819,0.00014933,2]
[421838362,1778199044000,-479.218682,0.00014833,2]
[421838396,1778199044000,-4802.52665548,0.00015,2]
[421838395,1778199044000,-380.52932165,0.00015,2]
[421838363,1778199044000,-151.0,0.00014833,2]
[421838393,1778199044000,-2500.0,0.00013699,2]
[421838392,1778199044000,-939425.55360774,0.00015,2]
[421838383,1778199044000,-300.0,0.00014999,2]
[421838380,1778199044000,-300.0,0.00014999,2]
[421838381,1778199044000,-666.0,0.00014999,2]
[421838382,1778199044000,-300.0,0.00014999,2]
[421838384,1778199044000,-666.0,0.00014999,2]
[421838379,1778199044000,-300.0,0.00014999,2]
[421838378,1778199044000,-150.00000001,0.00014986,2]
[421838394,1778199044000,-23903.79226853,0.00015,2]
[421838376,1778199044000,-152.0,0.00014957,2]
[421838377,1778199044000,-150.0,0.00014986,2]
[421838358,1778199044000,-479.218682,0.00014833,2]
[421838364,1778199044000,-232.387648,0.00014833,2]
[421838365,1778199044000,-243.458,0.00014899,2]
[421838367,1778199044000,-400.0,0.000149,5]
[421838371,1778199044000,-200.0,0.00014933,2]
[421838385,1778199044000,-296401.69457526,0.00015,2]
[421838369,1778199044000,-500.0,0.00014904,2]
[421838374,1778199044000,-200.0,0.00014933,2]
[421838375,1778199044000,-200.0,0.00014933,2]
[421838373,1778199044000,-200.0,0.00014933,2]
[421838368,1778199044000,-3923.17620316,0.000149,2]
[421838366,1778199044000,-181.65268001,0.000149,3]
[421838438,1778199161000,232.43,0.00029452,120]
[421838440,1778199233000,3002.34,0.00014404,30]
[421838443,1778199413000,430.57,6.805e-05,2]
[421838445,1778199413000,430.57,7.521e-05,2]
[421838446,1778199413000,430.57,7.88e-05,2]
[421838444,1778199413000,430.57,7.163e-05,2]
[421838449,1778199414000,430.57,8.954e-05,2]
[421838447,1778199414000,430.57,8.238e-05,2]
[421838448,1778199414000,430.57,8.596e-05,2]
[421838454,1778199415000,430.57,0.00010745,2]
[421838453,1778199415000,430.57,0.00010387,2]
[421838452,1778199415000,430.57,0.00010029,2]
[421838451,1778199415000,430.57,9.67e-05,2]
[421838450,1778199415000,430.57,9.312e-05,2]
[421838457,1778199416000,430.57,0.00011819,2]
[421838456,1778199416000,430.57,0.00011461,2]
[421838455,1778199416000,430.57,0.00011103,2]
[421838463,1778199539000,323.80651933,0.0001,2]
[421838465,1778199676000,-430.57,0.00012178,2]
[421838469,1778199992000,-168.30819175,0.00012536,2]
[421838470,1778200178000,1000.0,0.0003013,120]
[421838471,1778200186000,1000.0,0.0003013,120]
[421838472,1778200200000,1000.0,0.0003013,120]
[421838473,1778200228000,160.96,6.545e-05,2]
[421838474,1778200229000,160.96,7.091e-05,2]
[421838475,1778200229000,160.96,7.636e-05,2]
[421838479,1778200229000,160.96,9.272e-05,2]
[421838477,1778200229000,106.20947905,8.182e-05,2]
[421838478,1778200229000,160.96,8.727e-05,2]
[421838476,1778200229000,54.75052095,8.182e-05,2]
[421838483,1778200230000,160.96,0.00011454,2]
[421838482,1778200230000,160.96,0.00010909,2]
[421838481,1778200230000,160.96,0.00010363,2]
[421838480,1778200230000,160.96,9.818e-05,2]
[421838501,1778200231000,-192.6,0.00013181,2]
[421838502,1778200231000,-2000.0,0.00013194,2]
[421838505,1778200231000,-1000.0,0.00013282,2]
[421838503,1778200231000,-809.07,0.00013196,2]
[421838507,1778200231000,-166.66,0.00013699,2]
[421838506,1778200231000,-430.57,0.0001361,2]
[421838495,1778200231000,-1542.39,0.00013133,2]
[421838508,1778200231000,-2500.0,0.00013699,2]
[421838504,1778200231000,-430.57,0.00013252,2]
[421838498,1778200231000,-300.0,0.00013163,2]
[421838494,1778200231000,-1852.42,0.00013117,2]
[421838496,1778200231000,-200.0,0.00013133,2]
[421838497,1778200231000,-1200.0,0.00013163,2]
[421838509,1778200231000,-163.8893,0.0001376,2]
[421838493,1778200231000,-160.96,0.0001309,2]
[421838491,1778200231000,-171.74974037,0.00012968,2]
[421838489,1778200231000,-430.57,0.00012894,2]
[421838487,1778200231000,-160.96,0.00012545,2]
[421838485,1778200231000,-262.26180825,0.00012536,2]
[421838488,1778200231000,-250.0,0.00012715,2]
[421838484,1778200231000,-160.96,0.00011999,2]
[421838499,1778200231000,-150.0,0.00013164,2]
[421838512,1778200231000,-151.0,0.00013768,2]
[421838500,1778200231000,-4525.51,0.00013164,2]
[421838514,1778200231000,-151.0,0.00013768,2]
[421838534,1778200231000,-151.0,0.00013768,2]
[421838513,1778200231000,-151.0,0.00013768,2]
[421838532,1778200231000,-151.0,0.00013768,2]
[421838533,1778200231000,-151.0,0.00013768,2]
[421838530,1778200231000,-2080.17592889,0.00013768,2]
[421838527,1778200231000,-151.0,0.00013768,2]
[421838529,1778200231000,-151.0,0.00013768,2]
[421838526,1778200231000,-151.0,0.00013768,2]
[421838531,1778200231000,-151.0,0.00013768,2]
[421838524,1778200231000,-151.0,0.00013768,2]
[421838525,1778200231000,-151.0,0.00013768,2]
[421838528,1778200231000,-151.0,0.00013768,2]
[421838522,1778200231000,-151.0,0.00013768,2]
[421838521,1778200231000,-151.0,0.00013768,2]
[421838519,1778200231000,-151.0,0.00013768,2]
[421838520,1778200231000,-151.0,0.00013768,2]
[421838518,1778200231000,-151.0,0.00013768,2]
[421838517,1778200231000,-151.0,0.00013768,2]
[421838516,1778200231000,-500.0,0.00013768,2]
[421838515,1778200231000,-166.00695375,0.00013768,2]
[421838523,1778200231000,-151.0,0.00013768,2]
[421838511,1778200231000,-200.0,0.00013768,2]
[421838510,1778200231000,-150.0,0.00013767,2]
[421838602,1778200232000,-1533.52867163,0.00014598,2]
[421838603,1778200232000,-500.0,0.00014608,2]
[421838605,1778200232000,-277.46101422,0.00014608,2]
[421838604,1778200232000,-500.0,0.00014608,2]
[421838600,1778200232000,-712.97775232,0.0001457,2]
[421838609,1778200232000,-500.0,0.00014608,2]
[421838598,1778200232000,-5061.62035065,0.00014567,2]
[421838596,1778200232000,-1533.52867163,0.00014555,2]
[421838607,1778200232000,-500.0,0.00014608,2]
[421838594,1778200232000,-712.97775234,0.00014529,2]
[421838608,1778200232000,-500.0,0.00014608,2]
[421838606,1778200232000,-165.80729146,0.00014608,2]
[421838621,1778200232000,-522.16379312,0.00014608,2]
[421838611,1778200232000,-522.16379312,0.00014608,2]
[421838615,1778200232000,-522.16379312,0.00014608,2]
[421838612,1778200232000,-522.16379312,0.00014608,2]
[421838616,1778200232000,-522.16379312,0.00014608,2]
[421838618,1778200232000,-522.16379312,0.00014608,2]
[421838613,1778200232000,-522.16379312,0.00014608,2]
[421838619,1778200232000,-522.16379312,0.00014608,2]
[421838620,1778200232000,-522.16379312,0.00014608,2]
[421838614,1778200232000,-522.16379312,0.00014608,2]
[421838617,1778200232000,-522.16379312,0.00014608,2]
[421838622,1778200232000,-522.16379312,0.00014608,2]
[421838623,1778200232000,-522.16379312,0.00014608,2]
[421838592,1778200232000,-5061.62035066,0.00014512,2]
[421838610,1778200232000,-641.81992089,0.00014608,2]
[421838579,1778200232000,-13395.01,0.00014504,2]
[421838536,1778200232000,-151.0,0.00013768,2]
[421838577,1778200232000,-10000.0,0.00014484,2]
[421838535,1778200232000,-151.0,0.00013768,2]
[421838537,1778200232000,-151.0,0.00013768,2]
[421838624,1778200232000,-522.16379312,0.00014608,2]
[421838538,1778200232000,-500.0,0.0001377,2]
[421838540,1778200232000,-250.0,0.00013789,2]
[421838542,1778200232000,-1895.24,0.00013808,14]
[421838539,1778200232000,-18760.0,0.0001377,2]
[421838541,1778200232000,-6888.42,0.00013808,2]
[421838543,1778200232000,-166.66,0.00013836,2]
[421838545,1778200232000,-192.6,0.00013913,2]
[421838547,1778200232000,-741.7,0.00013932,2]
[421838551,1778200232000,-500.0,0.00014055,2]
[421838587,1778200232000,-1533.52867167,0.00014512,2]
[421838549,1778200232000,-166.66,0.00013973,2]
[421838560,1778200232000,-741.7,0.00014281,2]
[421838562,1778200232000,-2016.94381075,0.00014316,2]
[421838554,1778200232000,-166.66,0.0001411,2]
[421838556,1778200232000,-500.0,0.00014247,2]
[421838564,1778200232000,-166.66,0.00014384,2]
[421838566,1778200232000,-420.0,0.00014433,2]
[421838568,1778200232000,-288.61506285,0.00014453,2]
[421838570,1778200232000,-1680.0,0.00014479,2]
[421838585,1778200232000,-5000.0,0.00014509,2]
[421838574,1778200232000,-4564.215,0.00014482,2]
[421838581,1778200232000,-4026.86,0.00014504,2]
[421838589,1778200232000,-215.75120562,0.00014512,2]
[421838558,1778200232000,-166.66,0.00014247,2]
[421838628,1778200232000,-522.16379312,0.00014608,2]
[421838583,1778200232000,-2500.0,0.00014509,2]
[421838629,1778200232000,-522.16379312,0.00014608,2]
[421838659,1778200232000,-522.16379312,0.00014608,2]
[421838660,1778200232000,-522.16379312,0.00014608,2]
[421838661,1778200232000,-522.16379312,0.00014608,2]
[421838667,1778200232000,-510.2286207,0.00014608,2]
[421838669,1778200232000,-510.2286207,0.00014608,2]
[421838662,1778200232000,-522.16379312,0.00014608,2]
[421838663,1778200232000,-522.16379312,0.00014608,2]
[421838670,1778200232000,-510.2286207,0.00014608,2]
[421838664,1778200232000,-522.16379312,0.00014608,2]
[421838668,1778200232000,-510.2286207,0.00014608,2]
[421838666,1778200232000,-295.93198746,0.00014608,2]
[421838665,1778200232000,-522.16379312,0.00014608,2]
[421838671,1778200232000,-510.2286207,0.00014608,2]
[421838672,1778200232000,-510.2286207,0.00014608,2]
[421838673,1778200232000,-510.2286207,0.00014608,2]
[421838677,1778200232000,-510.2286207,0.00014608,2]
[421838676,1778200232000,-510.2286207,0.00014608,2]
[421838674,1778200232000,-510.2286207,0.00014608,2]
[421838675,1778200232000,-510.2286207,0.00014608,2]
[421838678,1778200232000,-510.2286207,0.00014608,2]
[421838679,1778200232000,-510.2286207,0.00014608,2]
[421838680,1778200232000,-510.2286207,0.00014608,2]
[421838682,1778200232000,-510.2286207,0.00014608,2]
[421838683,1778200232000,-510.2286207,0.00014608,2]
[421838681,1778200232000,-510.2286207,0.00014608,2]
[421838684,1778200232000,-510.2286207,0.00014608,2]
[421838631,1778200232000,-522.16379312,0.00014608,2]
[421838655,1778200232000,-522.16379312,0.00014608,2]
[421838656,1778200232000,-522.16379312,0.00014608,2]
[421838573,1778200232000,-2615.4703,0.00014482,2]
[421838652,1778200232000,-522.16379312,0.00014608,2]
[421838627,1778200232000,-522.16379312,0.00014608,2]
[421838626,1778200232000,-522.16379312,0.00014608,2]
[421838632,1778200232000,-522.16379312,0.00014608,2]
[421838625,1778200232000,-522.16379312,0.00014608,2]
[421838630,1778200232000,-522.16379312,0.00014608,2]
[421838633,1778200232000,-522.16379312,0.00014608,2]
[421838634,1778200232000,-522.16379312,0.00014608,2]
[421838635,1778200232000,-522.16379312,0.00014608,2]
[421838638,1778200232000,-522.16379312,0.00014608,2]